fUST/lending_fUST_20250423
["ID","MTS","AMOUNT","RATE_DAILY","PERIOD"]
[358763063,1745416255820,-500.0,0.00019452,2]
[358763065,1745416255832,-396.6888331,0.00019452,2]
[358763067,1745416255842,-500.0,0.00019452,2]
[358763069,1745416255852,-500.0,0.00019452,2]
[358763071,1745416255862,-500.0,0.00019452,2]
[358763073,1745416255872,-500.0,0.00019452,2]
[358763075,1745416255882,-500.0,0.00019452,2]
[358763077,1745416255891,-500.0,0.00019452,2]
[358763079,1745416255901,-500.0,0.00019452,2]
[358763081,1745416255910,-500.0,0.00019452,2]
[358763083,1745416256087,-1415.97,0.00019452,2]
[358763084,1745416256097,-500.0,0.00019452,2]
[358763085,1745416256107,-500.0,0.00019452,2]
[358763086,1745416256117,-500.0,0.00019452,2]
[358763087,1745416256126,-500.0,0.00019452,2]
[358763088,1745416256135,-500.0,0.00019452,2]
[358763089,1745416256145,-1392.334216,0.00019452,2]
[358763090,1745416256154,-1392.334216,0.00019452,2]
[358763091,1745416256164,-500.0,0.00019452,2]
[358763092,1745416256173,-500.0,0.00019452,2]
[358763093,1745416256183,-1392.334216,0.00019452,2]
[358763094,1745416256193,-502.412038,0.00019452,2]
[358763095,1745416256202,-852.72,0.00019452,2]
[358763096,1745416256211,-1392.334216,0.00019452,2]
[358763097,1745416256221,-501.53708838,0.00019452,2]
[358763099,1745416256230,-502.412038,0.00019452,2]
[358763100,1745416256240,-500.0,0.00019452,2]
[358763102,1745416256250,-500.0,0.00019452,2]
[358763104,1745416256259,-502.412038,0.00019452,2]
[358763106,1745416256269,-565.29,0.00019452,2]
[358763108,1745416256278,-502.412038,0.00019452,2]
[358763110,1745416256288,-500.0,0.00019452,2]
[358763112,1745416256298,-504.43,0.00019452,2]
[358763114,1745416256308,-1488.26,0.00019452,2]
[358763115,1745416256319,-500.0,0.00019452,2]
[358763117,1745416256333,-556.01,0.00019452,2]
[358763119,1745416256344,-500.0,0.00019452,2]
[358763121,1745416256357,-500.0,0.00019452,2]
[358763123,1745416256368,-1191.01,0.00019452,2]
[358763125,1745416256379,-3310.16,0.00019452,2]
[358763127,1745416256390,-500.0,0.00019452,2]
[358763129,1745416256400,-500.0,0.00019452,2]
[358763131,1745416256411,-500.0,0.00019452,2]
[358763133,1745416256421,-500.0,0.00019452,2]
[358763135,1745416256431,-855.18,0.00019452,2]
[358763137,1745416256441,-500.0,0.00019452,2]
[358763139,1745416256451,-505.078512,0.00019452,2]
[358763141,1745416256460,-500.0,0.00019452,2]
[358763143,1745416256470,-1029.56,0.00019452,2]
[358763145,1745416256479,-1293.74,0.00019452,2]
[358763147,1745416256490,-500.0,0.00019452,2]
[358763148,1745416256500,-500.0,0.00019452,2]
[358763150,1745416256510,-853.58,0.00019452,2]
[358763152,1745416256519,-500.0,0.00019452,2]
[358763154,1745416256529,-500.0,0.00019452,2]
[358763156,1745416256540,-647.48,0.00019452,2]
[358763158,1745416256549,-606.93,0.00019452,2]
[358763160,1745416256559,-500.0,0.00019452,2]
[358763162,1745416256570,-500.0,0.00019452,2]
[358763164,1745416256588,-500.0,0.00019452,2]
[358763166,1745416256598,-500.0,0.00019452,2]
[358763168,1745416256609,-346.85448563,0.00019452,2]
[358763171,1745416256631,-153.14551437,0.00019452,2]
[358763173,1745416256640,-551.91,0.00019452,2]
[358763175,1745416256651,-1000.0,0.00019452,2]
[358763177,1745416256661,-500.0,0.00019452,2]
[358763179,1745416256671,-500.0,0.00019452,2]
[358763181,1745416256681,-500.0,0.00019452,2]
[358763183,1745416256693,-500.0,0.00019452,2]
[358763185,1745416256703,-839.24,0.00019452,2]
[358763187,1745416256713,-588.72,0.00019452,2]
[358763189,1745416256722,-152.31623109,0.00019452,2]
[358763191,1745416256732,-500.0,0.00019452,2]
[358763193,1745416256742,-243.774811,0.00019452,2]
[358763195,1745416256751,-243.774811,0.00019452,2]
[358763197,1745416256761,-243.774811,0.00019452,2]
[358763199,1745416256771,-243.774811,0.00019452,2]
[358763201,1745416256781,-500.0,0.00019452,2]
[358763203,1745416256791,-500.0,0.00019452,2]
[358763205,1745416256800,-674.23,0.00019452,2]
[358763207,1745416256810,-589.56,0.00019452,2]
[358763209,1745416256820,-500.0,0.00019452,2]
[358763210,1745416256832,-500.0,0.00019452,2]
[358763212,1745416256842,-500.0,0.00019452,2]
[358763214,1745416256852,-505.57072618,0.00019452,2]
[358763216,1745416256861,-500.0,0.00019452,2]
[358763218,1745416256871,-526.04,0.00019452,2]
[358763220,1745416256880,-500.0,0.00019452,2]
[358763222,1745416256893,-500.0,0.00019452,2]
[358763224,1745416256903,-619.16,0.00019452,2]
[358763226,1745416256912,-154.528958,0.00019452,2]
[358763228,1745416256922,-500.0,0.00019452,2]
[358763230,1745416256931,-500.0,0.00019452,2]
[358763232,1745416256941,-500.0,0.00019452,2]
[358763234,1745416256950,-234.9367357,0.00019452,2]
[358763236,1745416256959,-654.2,0.00019452,2]
[358763238,1745416256969,-500.0,0.00019452,2]
[358763240,1745416256978,-371.977666,0.00019452,2]
[358763242,1745416256987,-500.0,0.00019452,2]
[358763244,1745416257001,-500.0,0.00019452,2]
[358763246,1745416257010,-371.977666,0.00019452,2]
[358763248,1745416257020,-500.0,0.00019452,2]
[358763250,1745416257029,-502.36297939,0.00019452,2]
[358763252,1745416257039,-500.0,0.00019452,2]
[358763254,1745416257048,-3430.34,0.00019452,2]
[358763256,1745416257058,-1076.23,0.00019452,2]
[358763258,1745416257067,-500.0,0.00019452,2]
[358763259,1745416257080,-500.0,0.00019452,2]
[358763261,1745416257090,-371.977666,0.00019452,2]
[358763264,1745416257100,-711.91,0.00019452,2]
[358763266,1745416257111,-371.977666,0.00019452,2]
[358763268,1745416257120,-507.4769315,0.00019452,2]
[358763269,1745416257130,-500.0,0.00019452,2]
[358763271,1745416257140,-502.4637224,0.00019452,2]
[358763273,1745416257150,-500.0,0.00019452,2]
[358763275,1745416257159,-500.0,0.00019452,2]
[358763277,1745416257169,-500.0,0.00019452,2]
[358763279,1745416257178,-500.0,0.00019452,2]
[358763281,1745416257188,-781.21,0.00019452,2]
[358763283,1745416257198,-500.0,0.00019452,2]
[358763285,1745416257209,-481.34956565,0.00019452,2]
[358763287,1745416257219,-500.0,0.00019452,2]
[358763289,1745416257228,-500.0,0.00019452,2]
[358763291,1745416257238,-500.0,0.00019452,2]
[358763293,1745416257247,-500.0,0.00019452,2]
[358763295,1745416257257,-500.0,0.00019452,2]
[358763297,1745416257267,-500.0,0.00019452,2]
[358763299,1745416257277,-500.0,0.00019452,2]
[358763301,1745416257286,-500.0,0.00019452,2]
[358763303,1745416257296,-233.817908,0.00019452,2]
[358763305,1745416257305,-233.817908,0.00019452,2]
[358763307,1745416257315,-500.0,0.00019452,2]
[358763309,1745416257324,-500.0,0.00019452,2]
[358763311,1745416257340,-500.0,0.00019452,2]
[358763313,1745416257350,-667.27,0.00019452,2]
[358763315,1745416257359,-233.817908,0.00019452,2]
[358763317,1745416257369,-233.817908,0.00019452,2]
[358763319,1745416257378,-500.0,0.00019452,2]
[358763321,1745416257388,-1132.33,0.00019452,2]
[358763323,1745416257398,-287.33976491,0.00019452,2]
[358763325,1745416257407,-243.0912456,0.00019452,2]
[358763327,1745416257417,-500.0,0.00019452,2]
[358763329,1745416257427,-500.0,0.00019452,2]
[358763331,1745416257437,-564.82,0.00019452,2]
[358763333,1745416257446,-519.76,0.00019452,2]
[358763335,1745416257456,-500.0,0.00019452,2]
[358763337,1745416257466,-500.0,0.00019452,2]
[358763339,1745416257475,-500.0,0.00019452,2]
[358763341,1745416257486,-500.0,0.00019452,2]
[358763343,1745416257495,-500.0,0.00019452,2]
[358763344,1745416257504,-500.0,0.00019452,2]
[358763346,1745416257514,-543.21,0.00019452,2]
[358763348,1745416257524,-500.0,0.00019452,2]
[358763350,1745416257534,-500.0,0.00019452,2]
[358763352,1745416257544,-984.9,0.00019452,2]
[358763355,1745416257555,-500.0,0.00019452,2]
[358763357,1745416257564,-500.0,0.00019452,2]
[358763358,1745416257575,-500.0,0.00019452,2]
[358763360,1745416257589,-804.35,0.00019452,2]
[358763362,1745416257599,-634.3,0.00019452,2]
[358763364,1745416257608,-500.0,0.00019452,2]
[358763366,1745416257621,-5498.08,0.00019452,2]
[358763368,1745416257630,-399.0784713,0.00019452,2]
[358763370,1745416257640,-552.2,0.00019452,2]
[358763372,1745416257650,-500.0,0.00019452,2]
[358763374,1745416257660,-500.0,0.00019452,2]
[358763376,1745416257670,-673.48,0.00019452,2]
[358763378,1745416257680,-500.0,0.00019452,2]
[358763380,1745416257690,-500.0,0.00019452,2]
[358763382,1745416257701,-500.0,0.00019452,2]
[358763384,1745416257711,-1362.72,0.00019452,2]
[358763386,1745416257720,-703.34,0.00019452,2]
[358763388,1745416257730,-500.0,0.00019452,2]
[358763390,1745416257740,-508.19,0.00019452,2]
[358763392,1745416257750,-500.0,0.00019452,2]
[358763394,1745416257760,-152.694128,0.00019452,2]
[358763396,1745416257769,-500.0,0.00019452,2]
[358763398,1745416257779,-500.0,0.00019452,2]
[358763400,1745416257788,-500.0,0.00019452,2]
[358763402,1745416257798,-987.27,0.00019452,2]
[358763404,1745416257808,-500.0,0.00019452,2]
[358763406,1745416257818,-500.0,0.00019452,2]
[358763408,1745416257831,-500.0,0.00019452,2]
[358763410,1745416257841,-500.0,0.00019452,2]
[358763412,1745416257850,-500.0,0.00019452,2]
[358763414,1745416257860,-1078.8,0.00019452,2]
[358763416,1745416257870,-500.0,0.00019452,2]
[358763418,1745416257880,-2567.75,0.00019452,2]
[358763420,1745416257889,-580.22,0.00019452,2]
[358763422,1745416257899,-500.0,0.00019452,2]
[358763424,1745416257908,-500.0,0.00019452,2]
[358763426,1745416257918,-500.0,0.00019452,2]
[358763428,1745416257927,-500.0,0.00019452,2]
[358763430,1745416257937,-500.0,0.00019452,2]
[358763432,1745416257946,-500.0,0.00019452,2]
[358763434,1745416257956,-620.47,0.00019452,2]
[358763436,1745416257965,-5489.64,0.00019452,2]
[358763438,1745416257974,-500.0,0.00019452,2]
[358763440,1745416257983,-500.0,0.00019452,2]
[358763442,1745416257993,-797.29,0.00019452,2]
[358763443,1745416258003,-500.0,0.00019452,2]
[358763460,1745416258159,-500.0,0.00019452,2]
[358763462,1745416258170,-500.0,0.00019452,2]
[358763464,1745416258179,-511.29,0.00019452,2]
[358763466,1745416258189,-1522.01,0.00019452,2]
[358763468,1745416258198,-617.71,0.00019452,2]
[358763470,1745416258208,-500.0,0.00019452,2]
[358763472,1745416258217,-5536.33,0.00019452,2]
[358763474,1745416258227,-500.0,0.00019452,2]
[358763476,1745416258236,-421.28066164,0.00019452,2]
[358763477,1745416258245,-869.64,0.00019452,2]
[358763479,1745416258255,-500.0,0.00019452,2]
[358763481,1745416258264,-500.0,0.00019452,2]
[358763482,1745416258274,-500.0,0.00019452,2]
[358763483,1745416258283,-500.0,0.00019452,2]
[358763484,1745416258293,-500.0,0.00019452,2]
[358763485,1745416258303,-523.23,0.00019452,2]
[358763486,1745416258313,-500.0,0.00019452,2]
[358763487,1745416258323,-1551.45,0.00019452,2]
[358763488,1745416258335,-500.0,0.00019452,2]
[358763489,1745416258345,-500.0,0.00019452,2]
[358763490,1745416258355,-500.0,0.00019452,2]
[358763491,1745416258365,-500.0,0.00019452,2]
[358763492,1745416258374,-1039.71,0.00019452,2]
[358763493,1745416258384,-500.0,0.00019452,2]
[358763494,1745416258394,-500.0,0.00019452,2]
[358763495,1745416258404,-989.89,0.00019452,2]
[358763496,1745416258415,-184.23798002,0.00019452,2]
[358763497,1745416258424,-1876.31,0.00019452,2]
[358763498,1745416258434,-1119.97,0.00019452,2]
[358763499,1745416258444,-500.0,0.00019452,2]
[358763500,1745416258454,-500.0,0.00019452,2]
[358763501,1745416258464,-359.99590353,0.00019452,2]
[358763502,1745416258473,-371.502461,0.00019452,2]
[358763503,1745416258483,-3245.67,0.00019452,2]
[358763504,1745416258493,-500.0,0.00019452,2]
[358763505,1745416258504,-371.502461,0.00019452,2]
[358763506,1745416258514,-500.0,0.00019452,2]
[358763507,1745416258523,-500.0,0.00019452,2]
[358763508,1745416258533,-371.502461,0.00019452,2]
[358763509,1745416258543,-7760.99,0.00019452,2]
[358763510,1745416258552,-371.502461,0.00019452,2]
[358763511,1745416258562,-500.0,0.00019452,2]
[358763512,1745416258573,-500.0,0.00019452,2]
[358763513,1745416258587,-1306.54,0.00019452,2]
[358763514,1745416258597,-500.0,0.00019452,2]
[358763515,1745416258607,-500.0,0.00019452,2]
[358763516,1745416258617,-500.0,0.00019452,2]
[358763517,1745416258627,-369.52,0.00019452,2]
[358763518,1745416258637,-500.0,0.00019452,2]
[358763519,1745416258647,-500.0,0.00019452,2]
[358763520,1745416258656,-500.0,0.00019452,2]
[358763521,1745416258666,-612.65702411,0.00019452,2]
[358763522,1745416258676,-500.0,0.00019452,2]
[358763523,1745416258686,-500.0,0.00019452,2]
[358763524,1745416258696,-920.69,0.00019452,2]
[358763525,1745416258706,-1093.76,0.00019452,2]
[358763526,1745416258716,-1668.16,0.00019452,2]
[358763527,1745416258725,-500.0,0.00019452,2]
[358763528,1745416258735,-500.0,0.00019452,2]
[358763529,1745416258744,-500.0,0.00019452,2]
[358763530,1745416258754,-504.91,0.00019452,2]
[358763531,1745416258764,-1287.04,0.00019452,2]
[358763532,1745416258774,-500.0,0.00019452,2]
[358763533,1745416258784,-500.0,0.00019452,2]
[358763534,1745416258794,-604.16,0.00019452,2]
[358763535,1745416258804,-1250.37,0.00019452,2]
[358763536,1745416258814,-561.41094748,0.00019452,2]
[358763539,1745416258836,-194.34905252,0.00019452,2]
[358763541,1745416258847,-500.0,0.00019452,2]
[358763542,1745416258857,-500.0,0.00019452,2]
[358763544,1745416258868,-3022.16,0.00019452,2]
[358763546,1745416258879,-500.0,0.00019452,2]
[358763548,1745416258889,-500.0,0.00019452,2]
[358763550,1745416258899,-500.0,0.00019452,2]
[358763552,1745416258908,-500.0,0.00019452,2]
[358763553,1745416258918,-500.0,0.00019452,2]
[358763555,1745416258928,-500.0,0.00019452,2]
[358763557,1745416258938,-500.0,0.00019452,2]
[358763558,1745416258947,-354.01156293,0.00019452,2]
[358763559,1745416258957,-892.63,0.00019452,2]
[358763561,1745416258967,-500.0,0.00019452,2]
[358763563,1745416258976,-500.0,0.00019452,2]
[358763565,1745416258987,-500.0,0.00019452,2]
[358763567,1745416259000,-500.0,0.00019452,2]
[358763569,1745416259010,-597.6,0.00019452,2]
[358763571,1745416259020,-500.0,0.00019452,2]
[358763572,1745416259030,-500.0,0.00019452,2]
[358763573,1745416259040,-5863.38,0.00019452,2]
[358763574,1745416259050,-500.0,0.00019452,2]
[358763575,1745416259060,-500.0,0.00019452,2]
[358763576,1745416259069,-500.0,0.00019452,2]
[358763577,1745416259080,-500.0,0.00019452,2]
[358763578,1745416259090,-601.74,0.00019452,2]
[358763579,1745416259099,-2909.03,0.00019452,2]
[358763580,1745416259109,-500.0,0.00019452,2]
[358763581,1745416259119,-500.0,0.00019452,2]
[358763582,1745416259129,-500.0,0.00019452,2]
[358763583,1745416259138,-500.0,0.00019452,2]
[358763584,1745416259148,-500.0,0.00019452,2]
[358763585,1745416259158,-500.0,0.00019452,2]
[358763586,1745416259167,-613.23,0.00019452,2]
[358763587,1745416259177,-500.0,0.00019452,2]
[358763588,1745416259186,-1083.72,0.00019452,2]
[358763589,1745416259196,-1375.72,0.00019452,2]
[358763590,1745416259205,-500.0,0.00019452,2]
[358763591,1745416259215,-13507.72,0.00019452,2]
[358763592,1745416259225,-500.0,0.00019452,2]
[358763593,1745416259234,-500.0,0.00019452,2]
[358763594,1745416259244,-500.0,0.00019452,2]
[358763595,1745416259254,-500.0,0.00019452,2]
[358763596,1745416259263,-500.0,0.00019452,2]
[358763597,1745416259273,-500.0,0.00019452,2]
[358763598,1745416259283,-500.0,0.00019452,2]
[358763599,1745416259292,-500.0,0.00019452,2]
[358763600,1745416259303,-500.0,0.00019452,2]
[358763601,1745416259312,-500.0,0.00019452,2]
[358763602,1745416259322,-502.76261163,0.00019452,2]
[358763603,1745416259335,-1163.29,0.00019452,2]
[358763604,1745416259346,-1203.09,0.00019452,2]
[358763605,1745416259357,-672.87,0.00019452,2]
[358763606,1745416259367,-500.0,0.00019452,2]
[358763607,1745416259377,-578.14,0.00019452,2]
[358763608,1745416259387,-540.12,0.00019452,2]
[358763609,1745416259396,-500.0,0.00019452,2]
[358763610,1745416259406,-500.0,0.00019452,2]
[358763611,1745416259416,-500.0,0.00019452,2]
[358763612,1745416259426,-500.0,0.00019452,2]
[358763613,1745416259436,-500.0,0.00019452,2]
[358763614,1745416259446,-500.0,0.00019452,2]
[358763615,1745416259456,-500.0,0.00019452,2]
[358763616,1745416259466,-515.7740399,0.00019452,2]
[358763617,1745416259475,-763.48,0.00019452,2]
[358763618,1745416259486,-500.0,0.00019452,2]
[358763619,1745416259495,-500.0,0.00019452,2]
[358763620,1745416259505,-500.0,0.00019452,2]
[358763621,1745416259515,-500.0,0.00019452,2]
[358763622,1745416259525,-13674.46,0.00019452,2]
[358763623,1745416259535,-368.1004897,0.00019452,2]
[358763624,1745416259545,-519.3542182,0.00019452,2]
[358763625,1745416259555,-800.41,0.00019452,2]
[358763626,1745416259564,-500.0,0.00019452,2]
[358763627,1745416259575,-4631.93,0.00019452,2]
[358763628,1745416259592,-500.0,0.00019452,2]
[358763629,1745416259603,-4749.75,0.00019452,2]
[358763630,1745416259614,-500.0,0.00019452,2]
[358763631,1745416259625,-1478.65,0.00019452,2]
[358763632,1745416259635,-500.0,0.00019452,2]
[358763633,1745416259646,-500.0,0.00019452,2]
[358763634,1745416259655,-500.0,0.00019452,2]
[358763635,1745416259665,-500.0,0.00019452,2]
[358763636,1745416259675,-500.0,0.00019452,2]
[358763637,1745416259685,-1475.3,0.00019452,2]
[358763638,1745416259695,-500.0,0.00019452,2]
[358763639,1745416259704,-539.52,0.00019452,2]
[358763640,1745416259714,-806.04,0.00019452,2]
[358763641,1745416259723,-500.0,0.00019452,2]
[358763642,1745416259733,-630.45,0.00019452,2]
[358763643,1745416259743,-500.0,0.00019452,2]
[358763644,1745416259752,-500.0,0.00019452,2]
[358763645,1745416259762,-162.93,0.00019452,2]
[358763646,1745416259772,-500.0,0.00019473,2]
[358763647,1745416259782,-501.43373209,0.00019473,2]
[358763648,1745416259793,-500.0,0.00019473,2]
[358763649,1745416259803,-500.0,0.00019473,2]
[358763650,1745416259813,-500.0,0.00019473,2]
[358763651,1745416259823,-500.0,0.00019473,2]
[358763652,1745416259837,-500.0,0.00019473,2]
[358763653,1745416259847,-500.0,0.00019473,2]
[358763654,1745416259856,-151.0,0.00019473,2]
[358763655,1745416259866,-151.0,0.00019473,2]
[358763656,1745416259876,-151.0,0.00019473,2]
[358763657,1745416259885,-314.983841,0.00019473,2]
[358763658,1745416259894,-314.983841,0.00019473,2]
[358763659,1745416259903,-151.0,0.00019473,2]
[358763660,1745416259916,-151.0,0.00019473,2]
[358763661,1745416259925,-3942.465055,0.00019473,2]
[358763662,1745416260057,-3942.465055,0.00019473,2]
[358763663,1745416260070,-591.662066,0.00019473,2]
[358763664,1745416260082,-591.662066,0.00019473,2]
[358763665,1745416260092,-215.958199,0.00019473,2]
[358763666,1745416260102,-215.958199,0.00019473,2]
[358763667,1745416260113,-100708.95174772,0.000195,2]
[358763668,1745416260123,-151.0,0.000195,2]
[358763669,1745416260133,-1836.487651,0.000195,2]
[358763670,1745416260143,-1837.79894954,0.00019526,2]
[358763671,1745416260154,-500.000001,0.0001959,2]
[358763672,1745416260164,-2707.4,0.000196,2]
[358763673,1745416260174,-2707.4,0.000196,2]
[358763674,1745416260184,-2707.4,0.000196,2]
[358763675,1745416260194,-2707.4,0.000196,2]
[358763676,1745416260205,-2707.4,0.000196,2]
[358763677,1745416260215,-2707.4,0.000196,2]
[358763678,1745416260225,-2707.4,0.000196,2]
[358763679,1745416260236,-2707.4,0.000196,2]
[358763680,1745416260246,-151.0,0.000196,2]
[358763681,1745416260256,-151.0,0.000196,2]
[358763682,1745416260267,-151.0,0.000196,2]
[358763683,1745416260278,-151.0,0.000196,2]
[358763684,1745416260289,-151.0,0.000196,2]
[358763685,1745416260299,-151.0,0.000196,2]
[358763686,1745416260310,-62.72225689,0.00019692,2]
[358763687,1745416260325,-4939.0846938,0.00019692,2]
[358763723,1745416563859,-197.83608001,0.00019078,2]
[358763752,1745416922930,196.3,0.00018,2]
[358763757,1745417031673,-179.76296344,0.00019072,2]
[358763928,1745417248382,-410.63906184,0.00019,2]
[358763939,1745417305538,845.23,0.0001899,3]
[358763940,1745417327352,-158.22064414,0.00018999,2]
[358763941,1745417327375,-24.76163694,0.00018999,2]
[358763942,1745417331820,-265.30641499,0.00018999,2]
[358763946,1745417402371,300.0,0.00019,3]
[358763947,1745417403936,-152.0,0.00018998,2]
[358763948,1745417408704,-148.0,0.00018998,2]
[358763949,1745417408732,-2.11943447,0.00018998,2]
[358763976,1745417432419,-897.88056553,0.00018998,2]
[358763978,1745417432430,-209.93194807,0.00018999,2]
[358763980,1745417432445,-469.24955774,0.00018999,2]
[358763982,1745417432456,-440.22983409,0.00018999,2]
[358763984,1745417432466,-500.0,0.00018999,2]
[358763986,1745417432476,-500.0,0.00018999,2]
[358763988,1745417432486,-500.0,0.00018999,2]
[358763990,1745417432497,-500.0,0.00018999,2]
[358763992,1745417432507,-500.0,0.00018999,2]
[358763994,1745417432518,-175.02352622,0.00018999,2]
[358763996,1745417432528,-500.0,0.00018999,2]
[358763998,1745417432538,-371.2884468,0.00018999,2]
[358764000,1745417432548,-500.0,0.00018999,2]
[358764003,1745417432563,-500.0,0.00018999,2]
[358764005,1745417432573,-191.13692707,0.00018999,2]
[358764007,1745417432584,-500.0,0.00018999,2]
[358764009,1745417432595,-500.0,0.00018999,2]
[358764011,1745417432606,-500.0,0.00018999,2]
[358764013,1745417432616,-500.0,0.00018999,2]
[358764015,1745417432626,-500.0,0.00018999,2]
[358764017,1745417432635,-500.0,0.00018999,2]
[358764019,1745417432645,-500.0,0.00018999,2]
[358764021,1745417432655,-500.0,0.00018999,2]
[358764023,1745417432664,-500.0,0.00018999,2]
[358764025,1745417432674,-500.0,0.00018999,2]
[358764026,1745417432687,-500.0,0.00018999,2]
[358764027,1745417432696,-500.0,0.00018999,2]
[358764028,1745417432707,-500.0,0.00018999,2]
[358764029,1745417432717,-500.0,0.00018999,2]
[358764030,1745417432728,-500.0,0.00018999,2]
[358764031,1745417432739,-500.0,0.00018999,2]
[358764032,1745417432749,-500.0,0.00018999,2]
[358764033,1745417432759,-500.0,0.00018999,2]
[358764034,1745417432770,-387.56283909,0.00018999,2]
[358764035,1745417432781,-500.0,0.00018999,2]
[358764036,1745417432791,-500.0,0.00018999,2]
[358764037,1745417432800,-500.0,0.00018999,2]
[358764038,1745417432810,-500.0,0.00018999,2]
[358764039,1745417432820,-500.0,0.00018999,2]
[358764040,1745417432830,-500.0,0.00018999,2]
[358764041,1745417432840,-500.0,0.00018999,2]
[358764042,1745417432851,-22235.15292792,0.00018999,2]
[358764043,1745417432862,-229781.41076231,0.00019,2]
[358764044,1745417432872,-601.80156986,0.00019066,2]
[358764045,1745417432882,-601.80156986,0.00019137,2]
[358764046,1745417432892,-151.0,0.00019166,2]
[358764047,1745417432902,-151.0,0.00019166,2]
[358764048,1745417432912,-249.2955621,0.00019166,2]
[358764049,1745417432922,-207.4,0.00019166,2]
[358764050,1745417432934,-151.0,0.00019166,2]
[358764051,1745417432944,-500.0,0.00019173,2]
[358764052,1745417432954,-500.0,0.00019173,2]
[358764053,1745417432965,-500.0,0.00019173,2]
[358764054,1745417432975,-500.0,0.00019173,2]
[358764055,1745417432985,-500.0,0.00019173,2]
[358764056,1745417432996,-500.0,0.00019173,2]
[358764057,1745417433006,-500.0,0.00019173,2]
[358764058,1745417433017,-500.0,0.00019173,2]
[358764060,1745417433027,-500.0,0.00019173,2]
[358764062,1745417433037,-500.0,0.00019173,2]
[358764064,1745417433047,-500.0,0.00019173,2]
[358764066,1745417433057,-500.0,0.00019173,2]
[358764068,1745417433068,-500.0,0.00019173,2]
[358764070,1745417433078,-500.0,0.00019173,2]
[358764072,1745417433088,-1000.0,0.00019178,2]
[358764074,1745417433099,-500.0,0.00019178,2]
[358764076,1745417433109,-401.73124055,0.00019178,2]
[358764078,1745417433120,-500.0,0.00019178,2]
[358764080,1745417433130,-181.62774334,0.00019178,2]
[358764082,1745417433140,-500.0,0.00019178,2]
[358764084,1745417433151,-187.6220699,0.00019178,2]
[358764086,1745417433163,-500.0,0.00019178,2]
[358764088,1745417433172,-151.819864,0.00019178,2]
[358764091,1745417433185,-151.819864,0.00019178,2]
[358764093,1745417433195,-151.0,0.00019178,2]
[358764095,1745417433204,-422.71671576,0.00019178,2]
[358764097,1745417433214,-151.0,0.00019178,2]
[358764099,1745417433224,-500.0,0.00019178,2]
[358764101,1745417433234,-500.0,0.00019178,2]
[358764103,1745417433244,-500.0,0.00019178,2]
[358764105,1745417433254,-500.0,0.00019178,2]
[358764107,1745417433264,-501.64088487,0.00019178,2]
[358764109,1745417433274,-500.0,0.00019178,2]
[358764111,1745417433284,-500.0,0.00019178,2]
[358764113,1745417433295,-500.0,0.00019178,2]